Cogmind - Beta 13 X2 @@@ ROGUE MODE // 2024.01.11 @ 01:54:17 Player: Decinym Result: Destroyed by G-67 Veteran with Field Laser Performance ------------- Evolutions (7) 3500 Regions Visited (26) 5200 Robots Destroyed (298) 1490 Value Destroyed (12490) 12490 Prototype IDs (80) 1600 Alien Tech Used (1) 200 Bonus (1358) 1358 TOTAL SCORE: 25838 Bonus ------- High Alert Combat Kills 1320 Follower Combat Kills 707 Entered Garrisons 200 Aligned with FarCom 300 Met Data Miner 300 Met Imprinter 300 Destroyed Z-Imprinter 1000 Triggered Deep Caves Wall 500 Exposed GOLEM Chamber 500 Met Zhirov 300 Friendly Fire -4069 Cogmind --------- Core Integrity 0/1300 Matter 287/300 Energy 100/100 System Corruption 17% Temperature Cool (9) Movement Core (50) Location -3/Research Parts ------- > --- POWER (2) -------- (None) > --- PROPULSION (6) --- (None) > --- UTILITY (10) ----- (None) > --- WEAPON (3) ------- (None) > --- INVENTORY (5) ---- Combat Antigrav System Advanced Power Amplifier Advanced Transmission Jammer Compact Tesla Bomb Launcher Peak State ------------ > --- POWER ------------ Assembled Flux Generator > --- PROPULSION ------- Advanced Myomer Leg Advanced Myomer Leg Advanced Myomer Leg Assembled Alloy Leg Assembled Alloy Leg Gyrokinetic Inverter > --- UTILITY ---------- Assembled Nanovents High-capacity Storage Unit Assembled Biocell Array Quantum Shading Machine Active Sensor Suite Advanced Transmission Jammer GOLEM Unit > --- WEAPON ----------- Assembled Focal Cannon Assembled Focal Cannon Assembled Focal Cannon > --- INVENTORY -------- Heavy Antimatter Reactor Armored Medium Treads Combat Antigrav System Advanced Power Amplifier Zionite Biocell Zionite Biocell Long-range Terrain Scanner Advanced Terrain Scan Processor Advanced Transmission Jammer Zionite Weapon Casing Advanced Force Field Advanced System Shield Transdimensional Reconstructor AWS/Autocannon Compact Tesla Bomb Launcher Rocket Array Field Lobotomy Kit [Rating: 184] Favorites ----------- Power Assembled Flux Generator Engine Heavy Ion Engine Power Core Light Neutrino Core Reactor Assembled Flux Generator Propulsion Light Treads Treads Light Treads Leg Assembled Alloy Leg Wheel Centrium Wheel Hover Unit Gyrokinetic Inverter Utility High-capacity Storage Unit Device GOLEM Unit Storage High-capacity Storage Unit Processor Advanced Targeting Computer Hackware Hacking Suite Protection Medium Reactive Plating Weapon Assembled Focal Cannon Energy Gun Heavy Gatling Laser Energy Cannon Assembled Focal Cannon Ballistic Gun Heavy Assault Rifle Ballistic Cannon Light Cannon Launcher Grenade Launcher Special Weapon Field Lobotomy Kit Impact Weapon Heavy Flail Slashing Weapon Katana Build | -11 -10 -10 -9 -9 -9 -8 -8 -8 -7 -7 -7 -7 -6 -6 -6 -6 -6 -6 -5 -5 -5 -5 -5 -4 -4 -3 ------- Run | Yrd Mat Min Mat Min Exi Min Mat Gar Fac Low Low Dat Pro Fac Low Low Zio Dee Pro Fac Upp Upp Zhi Pro Fac Res Slots Evolved 14 | . . . 2 . . . 2 . 2 . . . . 2 . . . . . 2 . . . . 2 2 Power 1 | . . . . . . . . . 1 . . . . . . . . . . . . . . . . . Propulsion 4 | . . . 1 . . . . . 1 . . . . . . . . . . . . . . . 1 1 Utility 8 | . . . 1 . . . 2 . . . . . . 2 . . . . . 1 . . . . 1 1 Weapon 1 | . . . . . . . . . . . . . . . . . . . . 1 . . . . . . Parts Attached 283 | . 3 14 10 . 19 2 4 35 9 22 2 . 23 27 7 8 3 40 4 7 . 9 8 9 8 10 Power 15 | . . 2 2 . 1 . . 1 1 1 . . 1 2 . 1 . 3 . . . . . . . . Engine 9 | . . 1 2 . 1 . . 1 1 1 . . . 2 . . . . . . . . . . . . Core 4 | . . 1 . . . . . . . . . . . . . 1 . 2 . . . . . . . . Reactor 2 | . . . . . . . . . . . . . 1 . . . . 1 . . . . . . . . Propulsion 58 | . . 4 2 . 3 . 1 13 2 5 . . 3 3 1 1 . 7 . 2 . . 3 3 2 3 Treads 33 | . . 2 2 . 3 . 1 9 2 4 . . 2 3 1 1 . 2 . . . . . . . 1 Leg 22 | . . 2 . . . . . 4 . 1 . . . . . . . 5 . 2 . . 3 2 2 1 Wheel 1 | . . . . . . . . . . . . . . . . . . . . . . . . 1 . . Hover 2 | . . . . . . . . . . . . . 1 . . . . . . . . . . . . 1 Flight . | . . . . . . . . . . . . . . . . . . . . . . . . . . . Utility 108 | . 2 3 1 . 3 . 2 6 2 11 1 . 9 10 4 4 . 22 3 4 . 6 4 6 3 2 Device 54 | . . . 1 . 2 . 1 2 . 9 . . 7 6 3 3 . 8 1 1 . 2 1 3 3 1 Storage 7 | . 1 1 . . . . . . . . . . 1 . . . . 1 . 1 . 1 1 . . . Processor 9 | . 1 1 . . . . . 2 1 1 . . . . . 1 . 1 . 1 . . . . . . Hackware 1 | . . . . . . . . . . . . . . 1 . . . . . . . . . . . . Protection 37 | . . 1 . . 1 . 1 2 1 1 1 . 1 3 1 . . 12 2 1 . 3 2 3 . 1 Artifact . | . . . . . . . . . . . . . . . . . . . . . . . . . . . Weapon 102 | . 1 5 5 . 12 2 1 15 4 5 1 . 10 12 2 2 3 8 1 1 . 3 1 . 3 5 Energy Gun 32 | . . 1 3 . 1 . . 4 2 . 1 . 4 7 1 1 2 5 . . . . . . . . Energy Cannon 5 | . . . . . . . . . 2 2 . . . . . . . 1 . . . . . . . . Ballistic Gun 23 | . 1 1 1 . 5 1 1 7 . 1 . . 2 1 . . 1 1 . . . . . . . . Ballistic Cannon 2 | . . 1 . . . . . . . . . . . . . . . . . . . . . . . 1 Launcher 25 | . . 1 1 . 2 1 . 1 . 2 . . 3 4 1 1 . 1 1 1 . 1 . . 2 2 Special Weapon 3 | . . . . . . . . . . . . . . . . . . . . . . . . . 1 2 Impact Weapon 4 | . . . . . . . . 3 . . . . . . . . . . . . . 1 . . . . Slashing Weapon 8 | . . 1 . . 4 . . . . . . . 1 . . . . . . . . 1 1 . . . Piercing Weapon . | . . . . . . . . . . . . . . . . . . . . . . . . . . . Special Melee Weapon . | . . . . . . . . . . . . . . . . . . . . . . . . . . . Unidentified Prototypes 35 | . . . 2 . 1 1 . . 1 1 . . 9 3 . 1 . 9 . 1 . . 3 1 1 1 Corrupted Parts 5 | . . . . . . . . 4 . . . . . . . . . 1 . . . . . . . . System Corruption 32 | . . . . . . . . 26 . . . . . . . . . 6 . . . . . . . . Parts Lost 69 | . 1 . 1 . 2 . 1 11 . . . . 1 5 1 1 . 10 2 . . 1 4 . 8 20 Power 8 | . . . 1 . . . . 1 . . . . . 2 . . . 2 . . . . . . 1 1 Propulsion 22 | . . . . . 2 . . 5 . . . . 1 3 1 . . 2 . . . . . . 1 7 Utility 26 | . . . . . . . 1 3 . . . . . . . 1 . 5 1 . . 1 2 . 4 8 Weapon 13 | . 1 . . . . . . 2 . . . . . . . . . 1 1 . . . 2 . 2 4 Highest Loss Streak 15 | . 1 . 1 . 2 . 1 3 . . . . 1 2 1 1 . 5 2 . . 1 4 . 6 15 To Critical Strikes 1 | . . . . . 1 . . . . . . . . . . . . . . . . . . . . . Average Slot Usage (%) 93 | . 99 100 97 100 100 100 99 96 100 99 100 100 99 98 99 99 97 91 83 87 88 87 80 87 87 70 Engine 5 | . 14 5 10 11 11 11 9 8 15 15 15 15 12 5 6 2 . . . . . . . . . . Core 1 | . . 8 . . . . . . . . . . . . . 3 6 5 . . . . . . . . Reactor 3 | . . . . . . . . . . . . . 1 6 6 6 6 4 6 5 5 5 5 5 4 3 Treads 16 | . . 5 33 33 33 33 27 24 30 29 30 30 30 25 25 26 26 15 . . . . . . . . Leg 10 | . 28 22 . . . . . 1 . . . . . . . . . 9 26 23 23 22 22 23 25 20 Device 12 | . . . 8 11 11 11 18 13 7 7 7 7 7 13 13 12 13 13 16 15 17 12 16 16 21 20 Storage 9 | . 14 14 11 11 11 11 9 9 7 7 7 7 7 6 6 6 6 8 12 10 11 10 12 11 10 8 Processor 8 | . 13 11 . . . . . 14 15 14 15 15 15 13 13 13 13 10 2 4 5 4 . . . . Protection 8 | . . 2 11 11 11 11 17 6 7 7 7 7 6 7 13 13 13 7 3 6 5 9 9 10 8 . Energy Gun 4 | . . 6 17 22 5 . . 9 1 . 6 7 9 12 12 12 5 5 . . . . . . . . Energy Cannon 7 | . . . . . . . . . 13 14 7 7 . . . . . 6 12 16 17 16 9 16 14 7 Ballistic Gun 2 | . 28 16 3 . 9 19 18 7 . . . . 4 . . . 4 . . . . . . . . . Naked Turns 5 | . . . . . . . . . . . . . . . . . . . . . . . . . . 5 Heaviest Build 152 | 14 19 59 61 59 79 79 80 64 93 101 93 90 95 106 106 102 102 117 137 152 137 141 135 150 151 147 Greatest Support 168 | 20 20 40 60 60 60 60 60 60 83 83 80 80 80 102 102 104 104 112 84 100 100 100 116 118 168 150 Greatest Overweight (x) 5 | . . 1 1 . 1 1 1 2 1 1 1 1 1 1 1 . . 2 1 1 1 1 1 1 1 5 Average Overweight (x) . | . . . . . . 1 . . . 1 1 1 . . . . . . 1 . 1 . . 1 . . Largest Inventory Capacity 20 | . 10 20 20 20 20 20 20 20 20 20 20 20 20 20 20 20 20 20 20 20 20 20 20 20 20 20 Average Capacity 19 | . 8 11 20 20 20 20 20 20 20 20 20 20 20 20 20 20 20 20 20 19 20 19 20 20 20 19 Most Carried 20 | . 10 16 20 20 20 20 20 20 20 20 20 20 20 20 20 20 20 20 20 20 20 20 20 20 20 20 Average Carried 18 | . 7 10 18 19 18 19 19 19 19 19 19 20 19 19 19 19 19 18 19 19 19 18 19 19 19 18 Final Capacity 20 | 8 10 20 20 20 20 20 20 20 20 20 20 20 20 20 20 20 20 20 20 20 20 20 20 20 20 5 Final Carried 20 | 6 10 16 20 20 20 20 20 20 20 20 20 20 20 20 20 20 20 20 20 20 20 16 19 20 20 4 Class Distribution -------------------- 51% | Scavenger-Mutant 34% | Golem 10% | Mutant Dominant Class ---------------- Mutant | -10/Materials Mutant | -10/Mines Scavenger-Mutant | -9/Materials Scavenger-Mutant | -9/Mines Scavenger-Mutant | -9/Exiles Mutant | -8/Mines Scavenger-Mutant | -8/Materials Scavenger-Mutant | -8/Garrison Scavenger-Mutant | -7/Factory Scavenger-Mutant | -7/Lower Caves Scavenger-Mutant | -7/Lower Caves Scavenger-Mutant | -7/Data Miner Scavenger-Mutant | -6/Proximity Caves Scavenger-Mutant | -6/Factory Scavenger-Mutant | -6/Lower Caves Scavenger-Mutant | -6/Lower Caves Scavenger-Mutant | -6/Zion Scavenger-Mutant | -6/Deep Caves Golem | -5/Proximity Caves Golem | -5/Factory Golem | -5/Upper Caves Golem | -5/Upper Caves Scavenger-Golem | -5/Zhirov Golem | -4/Proximity Caves Golem | -4/Factory Golem | -3/Research Resources | -11 -10 -10 -9 -9 -9 -8 -8 -8 -7 -7 -7 -7 -6 -6 -6 -6 -6 -6 -5 -5 -5 -5 -5 -4 -4 -3 ----------- Run | Yrd Mat Min Mat Min Exi Min Mat Gar Fac Low Low Dat Pro Fac Low Low Zio Dee Pro Fac Upp Upp Zhi Pro Fac Res Matter Collected 6048 | 200 163 319 152 . 527 . 180 750 196 193 83 . 519 417 176 189 49 609 111 87 140 325 348 121 126 68 Remotely . | . . . . . . . . . . . . . . . . . . . . . . . . . . . Salvage Created 13876 | . 228 306 940 . 468 45 113 1181 322 324 . . 361 1453 387 344 . 1251 641 972 220 1095 366 1089 848 922 Parts 620 | . 14 23 65 . 48 14 6 68 11 13 . . 3 35 12 7 . 27 32 60 16 46 8 50 35 27 Haulers Intercepted 10 | . 1 . 3 . . . . . . . . . . 2 . . . . . 2 . . . 1 1 . Recyclers Shooed 4 | . 1 . . . . . . . 1 . . . . 1 . . . . . . . . . . 1 . Parts Field Recycled . | . . . . . . . . . . . . . . . . . . . . . . . . . . . Retrieved Matter . | . . . . . . . . . . . . . . . . . . . . . . . . . . . Parts Self-Destructed 158 | . . . . . . . . . . 9 . . 4 . 8 6 2 . 29 . 15 32 3 50 . . Prevented 18 | . . . . . . . . . . 1 . . 2 . 4 3 . . . . . 6 . 2 . . Kills | -11 -10 -10 -9 -9 -9 -8 -8 -8 -7 -7 -7 -7 -6 -6 -6 -6 -6 -6 -5 -5 -5 -5 -5 -4 -4 -3 ------- Run | Yrd Mat Min Mat Min Exi Min Mat Gar Fac Low Low Dat Pro Fac Low Low Zio Dee Pro Fac Upp Upp Zhi Pro Fac Res Combat Hostiles Destroyed 285 | . 6 6 20 . 3 8 2 28 1 12 . . 5 23 11 6 . 47 18 18 10 18 . 15 14 14 Melee 1 | . . . . . 1 . . . . . . . . . . . . . . . . . . . . . Guns 83 | . 6 3 17 . . . 2 18 . 1 . . 3 15 7 3 . 8 . . . . . . . . Cannons 87 | . . 1 . . . . . . 1 3 . . . . . . . 1 12 13 10 16 . 15 8 7 AOE 95 | . . 2 3 . 2 8 . 8 . 8 . . 2 4 1 1 . 34 6 5 . 1 . . 6 4 Classes Destroyed 26 | . 3 4 2 . 3 . . 2 1 2 . . 2 1 . . . 3 . 1 1 . . . . 1 Worker 9 | . . 1 1 . . . . . 1 . . . . 2 . . . . . 1 . . . . 3 . Builder 8 | . . 1 1 . . . . . . . . . . 1 . . . . . 1 . . . . 2 2 Tunneler 1 | . . 1 . . . . . . . . . . . . . . . . . . . . . . . . Hauler 10 | . 1 . 3 . . . . . . . . . . 2 . . . . . 2 . . . 1 1 . Recycler 6 | . . . . . . . . . 3 . . . . 1 . . . . . . . . . . 2 . Mechanic 1 | . . . . . . . . . . . . . . . . . . . . 1 . . . . . . Operator 1 | . . . . . . . . . . . . . . 1 . . . . . . . . . . . . Drone 1 | . . . . . . . . . . . . . 1 . . . . . . . . . . . . . Turret 1 | . . . . . 1 . . . . . . . . . . . . . . . . . . . . . Watcher 5 | . . . 1 . . . . 1 1 . . . . . . . . . . 1 . . . . . 1 Swarmer 77 | . 3 2 7 . . 8 . 10 . 5 . . . . 6 . . . 11 9 9 1 . 2 4 . Saboteur 1 | . . . . . . . . . . . . . . . . . . . . . . . . . . 1 Grunt 89 | . 3 2 10 . . . 1 10 1 . . . 2 18 3 5 . . 5 3 . 9 . 8 1 8 Brawler 7 | . . . . . . . . . . . . . 1 . 1 . . . . . . 3 . 1 . 1 Duelist 6 | . . . 1 . . . . . . . . . . 1 . . . . . . . 2 . 1 . 1 Sentry 20 | . . 2 2 . . . 1 5 . . . . . 1 . . . . 2 1 . 1 . 1 1 3 Hunter 13 | . . . . . . . . 2 . . . . . 1 . . . . . 2 . . . 2 6 . Programmer 9 | . . . . . . . . 1 . . . . . 2 . 1 . . . 3 . . . . 2 . Behemoth 1 | . . . . . . . . . . . . . 1 . . . . . . . . . . . . . Enhanced Grunt 3 | . . . . . . . . . . . . . . . . . . 2 . . . . 1 . . . Zionite 7 | . . . . . 7 . . . . . . . . . . . . . . . . . . . . . Z-Light 3 | . . . . . . . . . . . . . . . . . . 3 . . . . . . . . Packrat 1 | . . . . . . . . . . 1 . . . . . . . . . . . . . . . . Master Thief 3 | . . . . . . . . . . . . . . . . . . . . . 1 2 . . . . Assembler 2 | . . . . . . . . . . . . . . . . . . 2 . . . . . . . . Assembled 41 | . . . . . 2 . . . . . . . . . . . . 39 . . . . . . . . Golem 5 | . . . . . . . . . . . . . . . . . . 5 . . . . . . . . Thug 2 | . . . . . . . . . . 1 . . . . . . . 1 . . . . . . . . Savage 5 | . . . . . . . . . . 5 . . . . . . . . . . . . . . . . Mutant 2 | . . . . . . . . . . 1 . . . . 1 . . . . . . . . . . . Best Kill Streak 37 | . 3 3 10 . 3 8 2 10 3 7 . . 3 7 4 4 . 37 7 7 4 5 . 5 11 8 Combat Bots Only 35 | . 3 2 8 . 2 8 2 10 1 7 . . 3 6 4 4 . 35 7 6 4 5 . 5 7 8 Max Kills in Single Turn 30 | . 1 1 3 . 2 4 1 3 1 3 . . 1 2 2 1 . 30 3 4 2 1 1 1 5 2 Gunslinging 1 | . . . . . . . . 1 . . . . . . 1 . . 1 . . . . . . . . Exploded 30 | . . 1 1 . 1 4 . 3 . 3 . . 1 1 1 1 . 30 3 3 . 1 . . 3 2 Melee 1 | . . . . . 1 . . . . . . . . . . . . . . . . . . . . . Uniques/NPCs Destroyed 5 | . . 1 . . 3 . . . . . . . . . . . . 1 . . . . . . . . YI-UF0 (-10/Mines) 8R-AWN (-9/Exiles) EX-DEC (-9/Exiles) EX-HEX (-9/Exiles) Z-Imprinter (-6/Deep Caves) Combat | -11 -10 -10 -9 -9 -9 -8 -8 -8 -7 -7 -7 -7 -6 -6 -6 -6 -6 -6 -5 -5 -5 -5 -5 -4 -4 -3 -------- Run | Yrd Mat Min Mat Min Exi Min Mat Gar Fac Low Low Dat Pro Fac Low Low Zio Dee Pro Fac Upp Upp Zhi Pro Fac Res Hostile Shots Fired 1717 | . 47 38 65 . 99 8 21 191 8 34 . . 49 144 57 24 . 75 90 127 28 68 22 74 187 261 Missed 459 | . 15 4 20 . 20 3 6 47 1 5 . . 15 38 12 7 . 11 24 44 14 18 4 20 51 80 Damage Taken 23302 | . 341 394 430 10 797 40 152 2020 120 377 . . 615 1535 484 399 . 2355 1382 1003 104 740 1779 922 2765 4538 Core 3523 | . 93 67 59 5 126 . . 360 18 67 . . 49 104 86 54 . 401 129 72 . 64 83 71 313 1302 Absorbed by Shields 1508 | . . . 146 4 306 16 61 56 . . . . . 128 . . . 206 180 257 42 106 . . . . Redirected to Shielding 448 | . . . . . . . . . . . . . . . . . . 169 . . . . 45 76 . 158 Ignored by Resistances 2232 | . . . . . 409 15 20 . . 125 . . 131 130 146 . . 22 . 262 31 169 214 192 366 . Regen/Repaired (Parts) 482 | . . . . . . . . . 69 . . . . . . . . . . 413 . . . . . . Core Remaining (%) 56 | 100 . 36 . . . 52 . 34 . . . . 80 . . . . . 8 . . . . 71 72 . Volleys Fired 759 | . 23 29 43 . 43 4 9 74 17 43 1 . 24 49 17 14 1 58 45 46 28 59 14 46 47 25 Largest 3 | . 2 2 2 . 2 2 2 2 2 2 2 . 2 2 2 2 1 2 2 3 3 3 3 3 3 3 Hottest 200 | . 40 95 95 . 68 70 43 130 110 170 160 . 160 200 200 200 28 200 50 75 75 75 75 75 75 95 Shots Fired 1536 | . 46 54 83 . 69 5 18 133 34 78 2 . 44 91 31 23 1 75 86 113 84 160 35 131 81 59 Gun 565 | . 46 34 80 . 55 2 18 126 . 1 1 . 37 83 28 16 1 37 . . . . . . . . Cannon 886 | . . 16 . . . . . . 34 70 1 . 3 . . . . 36 84 111 84 156 35 131 76 49 Launcher 80 | . . 4 3 . 14 3 . 7 . 7 . . 4 8 3 7 . 2 2 2 . 4 . . 4 6 Special 5 | . . . . . . . . . . . . . . . . . . . . . . . . . 1 4 Kinetic 295 | . 46 41 9 . 51 2 18 84 . 1 . . 17 . . . 1 8 . . . . . . . 17 Thermal 1061 | . . 9 9 . . . . 42 34 70 2 . 23 83 28 16 . 36 84 111 84 156 35 131 76 32 Explosive 50 | . . 4 3 . 14 3 . . . 7 . . 4 3 . . . 2 2 2 . . . . 4 2 Electromagnetic 125 | . . . 62 . 4 . . 7 . . . . . 5 3 7 . 29 . . . 4 . . . 4 Robot Hit Streak 29 | . 5 7 19 . 20 1 8 16 3 11 12 . 14 29 16 6 . 25 19 17 12 14 10 15 24 8 Robot Miss Streak 7 | . 4 5 4 . 3 3 2 5 3 3 2 . 5 3 4 7 . 2 2 4 2 2 2 2 2 3 Penetration Max 1 | . . . . . 1 . . 1 . . . . . . . . . . . . . . . . . . Secondary Targets 10 | . 1 1 . . . . . 2 . . . . . 2 1 . . 3 . . . . . . . . Max Gunslinging Chain 1 | . 1 1 . . . . . 1 . . . . . 1 1 . . 1 . . . . . . . . Autonomous 17 | . . . . . . . . . . . . . . . . . . . . . . . . . . 17 Shots Hit Robots 929 | . 24 30 61 . 84 2 13 82 18 27 2 . 33 79 25 15 . 57 37 54 22 51 58 57 62 36 Core Hits 724 | . 12 14 42 . 30 10 5 48 8 31 . . 24 79 23 11 . 133 37 28 9 29 11 27 67 46 Critical Kills 8 | . . . . . 2 . . 5 . 1 . . . . . . . . . . . . . . . . Critical Parts Destroyed 9 | . . . . . 3 1 . 5 . . . . . . . . . . . . . . . . . . Critical Strikes 24 | . . 2 . . 6 1 . 11 . 1 . . . . . . . 1 . . . . . . . 2 Destroy 18 | . . . . . 5 1 . 11 . 1 . . . . . . . . . . . . . . . . Blast 2 | . . . . . . . . . . . . . . . . . . . . . . . . . . 2 Corrupt 1 | . . . . . . . . . . . . . . . . . . 1 . . . . . . . . Sever 3 | . . 2 . . 1 . . . . . . . . . . . . . . . . . . . . . Melee Attacks 126 | . . 6 . . 65 . . 19 . . . . 1 . . . . . . . . 4 31 . . . Impact 23 | . . . . . . . . 19 . . . . . . . . . . . . . 4 . . . . Slashing 103 | . . 6 . . 65 . . . . . . . 1 . . . . . . . . . 31 . . . Piercing . | . . . . . . . . . . . . . . . . . . . . . . . . . . . Sneak Attacks 7 | . . 6 . . 1 . . . . . . . . . . . . . . . . . . . . . Combat Hostiles . | . . . . . . . . . . . . . . . . . . . . . . . . . . . Follow-up Attacks . | . . . . . . . . . . . . . . . . . . . . . . . . . . . Damage Inflicted 41323 | . 336 953 1193 . 2543 338 154 1880 496 1976 35 . 1313 3627 1193 821 . 3569 2428 3262 1109 2457 1131 2590 4437 3482 Guns 8665 | . 336 252 1031 . 561 12 154 1230 . 21 10 . 774 2419 756 400 . 709 . . . . . . . . Cannons 17655 | . . 136 . . . . . . 496 555 25 . 33 . . . . 680 1644 2809 1109 1937 847 2590 2831 1963 Explosions 12507 | . . 188 162 . 536 326 . 650 . 1400 . . 440 1208 437 421 . 2180 784 453 . 308 . . 1575 1439 Melee 2385 | . . 377 . . 1446 . . . . . . . 66 . . . . . . . . 212 284 . . . Ramming 111 | . . . . . . . . . . . . . . . . . . . . . . . . . 31 80 Kinetic 3870 | . 336 282 69 . 523 12 154 798 . 21 . . 271 . . . . 151 . . . . . . . 1253 Thermal 21348 | . . 106 177 . 70 . . 535 496 555 35 . 536 2419 756 400 . 786 1644 2809 1109 1937 847 2590 2831 710 Explosive 9473 | . . 188 132 . 466 326 . . . 1400 . . 440 630 . . . 2180 784 453 . . . . 1575 899 Electromagnetic 4136 | . . . 815 . 38 . . 547 . . . . . 578 437 421 . 452 . . . 308 . . . 540 Impact 212 | . . . . . . . . . . . . . . . . . . . . . . 212 . . . . Slashing 2173 | . . 377 . . 1446 . . . . . . . 66 . . . . . . . . . 284 . . . Piercing . | . . . . . . . . . . . . . . . . . . . . . . . . . . . Highest Corruption 27 | . . . . . 1 1 . 27 . . . . . 4 4 4 4 6 6 4 4 4 4 4 9 17 Average Corruption 5 | . . . . . 1 1 . 21 . . . . . 2 4 4 4 6 6 3 4 4 4 4 2 2 Corruption Purged . | . . . . . . . . . . . . . . . . . . . . . . . . . . . Corruption Blocked 8 | . . . . . . . . . . . . . . . . . . . . 8 . . . . . . Effects 493 | . . . . . 4 . . 69 . . . . . 13 44 32 3 103 44 22 30 65 31 23 6 4 Message Errors 119 | . . . . . 2 . . 18 . . . . . 1 10 10 1 25 12 5 6 14 6 6 1 2 Matter Fused 124 | . . . . . 1 . . 20 . . . . . 3 9 8 2 23 10 7 14 16 7 3 . 1 Heat Flow Errors 52 | . . . . . . . . 8 . . . . . 2 5 3 . 8 2 4 2 7 5 3 3 . Energy Discharges 64 | . . . . . . . . 7 . . . . . 1 11 7 . 15 7 2 2 7 2 3 . . Parts Rejected 4 | . . . . . . . . 1 . . . . . 1 . . . 2 . . . . . . . . Parts Fused 4 | . . . . . . . . . . . . . . . . . . 1 . . . . 2 1 . . Data Loss (minor) 63 | . . . . . 1 . . 7 . . . . . 1 5 2 . 18 6 1 3 11 4 2 2 . Data Loss (major) 22 | . . . . . . . . 1 . . . . . 2 2 . . 4 2 1 1 4 2 3 . . Misfires 21 | . . . . . . . . . . . . . . 1 1 2 . 3 3 2 2 3 3 1 . . Alerts 13 | . . . . . . . . 3 . . . . . 1 1 . . 3 2 . . 3 . . . . Misdirections 2 | . . . . . . . . 2 . . . . . . . . . . . . . . . . . . Weapon Failures 5 | . . . . . . . . 2 . . . . . . . . . 1 . . . . . 1 . 1 Overload Shots 2 | . . . . . . . . . . 2 . . . . . . . . . . . . . . . . Overflow Damage 1044 | . . 45 . . . 8 . 3 12 4 . . 45 . . 13 . 18 162 237 91 62 50 76 82 136 Projectiles 817 | . . . . . . . . . 12 4 . . . . . . . . 162 234 91 62 27 76 26 123 Explosions 114 | . . . . . . 8 . 3 . . . . . . . 13 . 18 . 3 . . . . 56 13 Melee 113 | . . 45 . . . . . . . . . . 45 . . . . . . . . . 23 . . . Knockbacks 16 | . . 5 . . . . . . . . . . . . . . . . . . . 2 . . . 9 Impact 3 | . . . . . . . . . . . . . . . . . . . . . . 2 . . . 1 Kinetic 12 | . . 5 . . . . . . . . . . . . . . . . . . . . . . . 7 Secondary 1 | . . . . . . . . . . . . . . . . . . . . . . . . . . 1 Self-Inflicted Damage 425 | . . . 36 . 13 24 . 84 . 42 . . . 19 17 45 . 12 . . . 23 . . 98 12 Shots 22 | . . . 1 . 1 1 . 3 . 2 . . . 1 1 2 . 1 . . . 3 . . 5 1 Rammed . | . . . . . . . . . . . . . . . . . . . . . . . . . . . Targets Rammed 5 | . . . . . . . . . . . . . . . . . . . . . . . . . 2 3 Kicked 5 | . . . . . . . . . . . . . . . . . . . . . . . . . 2 3 Crushed . | . . . . . . . . . . . . . . . . . . . . . . . . . . . Highest Temperature 351 | . 2 243 198 . 45 108 . 252 66 240 111 . 320 351 350 327 . 302 236 144 207 236 175 264 301 18 Average Temperature 86 | . 2 79 63 . 20 58 . 80 22 47 59 . 109 119 116 108 . 91 102 69 101 96 78 111 115 13 Received Heat Transfer 4639 | . 111 99 97 . . . 66 600 63 27 . . 138 500 115 105 . 378 222 93 . 351 18 237 796 623 Effects 12 | . . . . . . . . 1 . . . . 1 4 4 1 . . . . . . . . 1 . Energy Bleed 3 | . . . . . . . . 1 . . . . . . . 1 . . . . . . . . 1 . Interference 8 | . . . . . . . . . . . . . . 4 4 . . . . . . . . . . . Matter Decay 1 | . . . . . . . . . . . . . 1 . . . . . . . . . . . . . Siege Activations . | . . . . . . . . . . . . . . . . . . . . . . . . . . . Robots Corrupted 17 | . . . 1 . . . . 1 . . . . . 3 2 2 . 4 . . . 1 . . . 3 Combat Hostiles 16 | . . . . . . . . 1 . . . . . 3 2 2 . 4 . . . 1 . . . 3 Parts Fried 27 | . . . 6 . . . . 2 . . . . . 4 1 3 . . . . . 2 . . . 9 Impact Corruptions 1 | . . . . . . . . . . . . . . . . . . . . . . . . . . 1 Robots Melted 3 | . . . . . . . . 1 . . . . . 1 1 . . . . . . . . . . . Combat Hostiles 3 | . . . . . . . . 1 . . . . . 1 1 . . . . . . . . . . . Parts Melted 21 | . . . 2 . . . . 2 . . . . . 4 1 . . 2 . 4 3 . . 1 1 1 Heat Transferred 19601 | . . 185 359 . . . . 1148 833 920 75 . 1150 3975 1275 625 . 1050 900 1450 575 1125 631 1425 1500 400 Parts Sabotaged . | . . . . . . . . . . . . . . . . . . . . . . . . . . . Parts Stolen 9 | . . . . . . . . . . 2 . . . . . 2 . . . . 2 3 . . . . Parts Stripped . | . . . . . . . . . . . . . . . . . . . . . . . . . . . Power Chain Reactions 3 | . . . 1 . 1 . . 1 . . . . . . . . . . . . . . . . . . Missiles Intercepted . | . . . . . . . . . . . . . . . . . . . . . . . . . . . Alert | -11 -10 -10 -9 -9 -9 -8 -8 -8 -7 -7 -7 -7 -6 -6 -6 -6 -6 -6 -5 -5 -5 -5 -5 -4 -4 -3 ------- Run | Yrd Mat Min Mat Min Exi Min Mat Gar Fac Low Low Dat Pro Fac Low Low Zio Dee Pro Fac Upp Upp Zhi Pro Fac Res Peak Influence 1317 | . 182 137 464 142 . 212 90 1185 792 . . . . 1317 . . . . . 433 . . . . 504 665 Initial 900 | . . 70 1 142 . . 82 52 621 . . . . 900 . . . . . . . . . . . 240 Average 386 | . 79 35 195 142 . 120 51 795 648 . . . . 1096 . . . . . 137 . . . . 136 434 Maximum Alert Level 4 | . . . 2 . . 1 . 4 3 . . . . 4 . . . . . 2 . . . . 2 2 Low Security (%) 48 | . 100 100 49 100 . 44 100 5 . . . . . . . . . . . 79 . . . . 67 . Level 1 11 | . . . 43 . . 55 . 4 . . . . . . . . . . . 17 . . . . 14 30 Level 2 20 | . . . 7 . . . . 39 77 . . . . . . . . . . 2 . . . . 18 69 Level 3 11 | . . . . . . . . 23 22 . . . . 57 . . . . . . . . . . . . Level 4 8 | . . . . . . . . 27 . . . . . 42 . . . . . . . . . . . . Level 5 . | . . . . . . . . . . . . . . . . . . . . . . . . . . . High Security . | . . . . . . . . . . . . . . . . . . . . . . . . . . . Max Security . | . . . . . . . . . . . . . . . . . . . . . . . . . . . Squads Dispatched 35 | . . 1 2 . . . . . 2 . . . . 7 . . . . . 8 . 1 . . 3 11 Investigation 10 | . . 1 . . . . . . . . . . . 3 . . . . . 2 . . . . . 4 Extermination 9 | . . . . . . . . . 1 . . . . 2 . . . . . 3 . . . . 2 1 Reinforcement 14 | . . . 2 . . . . . 1 . . . . 2 . . . . . 3 . . . . 1 5 Assault 2 | . . . . . . . . . . . . . . . . . . . . . . 1 . . . 1 Garrison . | . . . . . . . . . . . . . . . . . . . . . . . . . . . Intercept . | . . . . . . . . . . . . . . . . . . . . . . . . . . . Searches Triggered 2 | . . . . . . . . . . . . . . 2 . . . . . . . . . . . . Construction Impeded 2 | . . . . . . . . . . . . . . . . . . . . . . . . . . 2 Haulers Reinforced 5 | . . . . . . . . . 1 . . . . 2 . . . . . 2 . . . . . . Active Scanning Responses 3 | . . . . . . . . . . . . . . . . . . . . . . . . . . 3 Cargo Convoy Interrupts 1 | . . . . . . . . . . . . . . . . . . . . 1 . . . . . . Stealth | -11 -10 -10 -9 -9 -9 -8 -8 -8 -7 -7 -7 -7 -6 -6 -6 -6 -6 -6 -5 -5 -5 -5 -5 -4 -4 -3 --------- Run | Yrd Mat Min Mat Min Exi Min Mat Gar Fac Low Low Dat Pro Fac Low Low Zio Dee Pro Fac Upp Upp Zhi Pro Fac Res Distress Signals 11 | . 1 . . . . . . . 2 . . . 1 2 . . . . . . . . . . 3 2 Communications Jammed 21 | . . . . . . . . . . . . . . . . . . . . . . . . . 1 20 Distress Signals 21 | . . . . . . . . . . . . . . . . . . . . . . . . . 1 20 Times Spotted 412 | . 13 6 26 . 33 7 6 33 8 20 1 . 8 27 13 9 . 53 17 26 14 20 3 16 21 32 Peak Tracking Total 37 | . 6 2 4 . 10 6 3 8 5 7 1 . 3 6 4 4 . 37 7 8 5 8 3 5 5 14 Tactical Retreats 26 | . . . 1 . 9 . 1 3 1 1 . . . . 1 1 . 1 . 1 1 4 . . 1 . Traps | -11 -10 -10 -9 -9 -9 -8 -8 -8 -7 -7 -7 -7 -6 -6 -6 -6 -6 -6 -5 -5 -5 -5 -5 -4 -4 -3 ------- Run | Yrd Mat Min Mat Min Exi Min Mat Gar Fac Low Low Dat Pro Fac Low Low Zio Dee Pro Fac Upp Upp Zhi Pro Fac Res Traps Triggered 10 | . . . 1 . . . . 1 . . . . . . . 2 . . . 3 . . . . 1 2 Indirectly . | . . . . . . . . . . . . . . . . . . . . . . . . . . . Trap Hack Attempts . | . . . . . . . . . . . . . . . . . . . . . . . . . . . Triggered . | . . . . . . . . . . . . . . . . . . . . . . . . . . . Disarmed . | . . . . . . . . . . . . . . . . . . . . . . . . . . . Reprogrammed . | . . . . . . . . . . . . . . . . . . . . . . . . . . . Reused . | . . . . . . . . . . . . . . . . . . . . . . . . . . . Traps Extracted . | . . . . . . . . . . . . . . . . . . . . . . . . . . . Installed . | . . . . . . . . . . . . . . . . . . . . . . . . . . . Triggered 9 | . . . . . . . . . . . . . . . . 5 . . . 2 1 . . 1 . . Machines | -11 -10 -10 -9 -9 -9 -8 -8 -8 -7 -7 -7 -7 -6 -6 -6 -6 -6 -6 -5 -5 -5 -5 -5 -4 -4 -3 ---------- Run | Yrd Mat Min Mat Min Exi Min Mat Gar Fac Low Low Dat Pro Fac Low Low Zio Dee Pro Fac Upp Upp Zhi Pro Fac Res Machines Disabled 36 | . . 2 . . 8 . . 7 3 . . . . 9 1 . . 1 1 3 . . . . . 1 Max in Single Turn 6 | . . 1 . . 2 . . 2 . . . . . 6 1 . . 1 1 1 . . . . . 1 Garrison Access 4 | . . . . . . . . . 1 . . . . 1 . . . . . 1 . . . . 1 . Garrison Relay 5 | . . . . . . . . 5 . . . . . . . . . . . . . . . . . . Machines Repaired . | . . . . . . . . . . . . . . . . . . . . . . . . . . . Machines Dismantled . | . . . . . . . . . . . . . . . . . . . . . . . . . . . Machines Sabotaged . | . . . . . . . . . . . . . . . . . . . . . . . . . . . Overloaded Fab Kills . | . . . . . . . . . . . . . . . . . . . . . . . . . . . Hacking | -11 -10 -10 -9 -9 -9 -8 -8 -8 -7 -7 -7 -7 -6 -6 -6 -6 -6 -6 -5 -5 -5 -5 -5 -4 -4 -3 --------- Run | Yrd Mat Min Mat Min Exi Min Mat Gar Fac Low Low Dat Pro Fac Low Low Zio Dee Pro Fac Upp Upp Zhi Pro Fac Res Machines Accessed 59 | . 1 2 2 1 2 . 4 3 5 1 1 4 . 5 . 1 . . 1 18 . . 4 1 2 1 Terminals 23 | . 1 1 2 . . . 3 3 1 . . . . 3 . . . . 1 7 . . . 1 . . Fabricators 5 | . . . . . . . . . 2 . . . . 1 . . . . . 1 . . . . . 1 Repair Stations 6 | . . . . . . . . . 1 . . . . . . . . . . 4 . . . . 1 . Recycling Units 2 | . . . . . . . . . . . . . . . . . . . . 2 . . . . . . Scanalyzers 3 | . . . . . . . . . . . . . . . . . . . . 3 . . . . . . Garrison Access 5 | . . . . . . . 1 . 1 . . . . 1 . . . . . 1 . . . . 1 . Total Hacks 167 | . 1 5 8 1 2 . 11 5 15 1 1 29 . 13 . 1 . . 9 41 . . 17 1 2 4 Successful 108 | . . 3 3 1 2 . 6 1 8 1 1 29 . 4 . 1 . . 9 20 . . 17 1 1 . Failed 59 | . 1 2 5 . . . 5 4 7 . . . . 9 . . . . . 21 . . . . 1 4 Catastrophic 18 | . 1 . . . . . 3 2 1 . . . . 3 . . . . . 6 . . . . 1 1 Database Lockouts . | . . . . . . . . . . . . . . . . . . . . . . . . . . . Manual 63 | . 1 3 8 . 1 . 8 . 6 . . . . 5 . . 11 . . 16 . . . . . 4 Terminals 62 | . 1 4 8 . . . 9 5 4 . . . . 7 . . . . 9 14 . . . 1 . . Fabricators 15 | . . . . . . . . . 5 . . . . 2 . . . . . 4 . . . . . 4 Repair Stations 17 | . . . . . . . . . 5 . . . . . . . . . . 11 . . . . 1 . Recycling Units 4 | . . . . . . . . . . . . . . . . . . . . 4 . . . . . . Scanalyzers 7 | . . . . . . . . . . . . . . . . . . . . 7 . . . . . . Garrison Access 9 | . . . . . . . 2 . 1 . . . . 4 . . . . . 1 . . . . 1 . Terminal Hacks 77 | . . 3 2 1 2 . 3 1 1 1 1 29 . 1 . 1 . . 9 4 . . 17 1 . . Record 27 | . . . . . 1 . . . . . . 11 . . . . . . 9 . . . 5 1 . . Part Schematic 14 | . . . . . . . . . . . . 10 . . . . . . . . . . 4 . . . Robot Schematic 6 | . . . . . . . . . . . . 5 . . . . . . . 1 . . . . . . Robot Analysis 4 | . . . . . . . . . . . . . . . . . . . . . . . 4 . . . Prototype ID Bank 7 | . . . . . . . . . . . . 3 . . . . . . . . . . 4 . . . Open Door 5 | . . 1 . 1 . . . . . 1 1 . . . . 1 . . . . . . . . . . Branch Access Points 2 | . . . . . . . . . 1 . . . . 1 . . . . . . . . . . . . Terminal Index 1 | . . . . . . . 1 . . . . . . . . . . . . . . . . . . . Scanalyzer Index 1 | . . . . . . . . . . . . . . . . . . . . 1 . . . . . . Alert Level 2 | . . . . . . . 1 . . . . . . . . . . . . 1 . . . . . . Unreport Threat 1 | . . . . . . . 1 . . . . . . . . . . . . . . . . . . . Dispatch Records 1 | . . 1 . . . . . . . . . . . . . . . . . . . . . . . . Recall Investigation 1 | . . . . . . . . . . . . . . . . . . . . 1 . . . . . . Hauler Manifests 1 | . . . 1 . . . . . . . . . . . . . . . . . . . . . . . Zone Layout 2 | . . 1 1 . . . . . . . . . . . . . . . . . . . . . . . Garrison Registry 1 | . . . . . . . . 1 . . . . . . . . . . . . . . . . . . Derelict Proto ID Bank 1 | . . . . . 1 . . . . . . . . . . . . . . . . . . . . . Fabricator Hacks 3 | . . . . . . . . . 1 . . . . 2 . . . . . . . . . . . . Load Schematic 1 | . . . . . . . . . . . . . . 1 . . . . . . . . . . . . Build 2 | . . . . . . . . . 1 . . . . 1 . . . . . . . . . . . . Repair Station Hacks 9 | . . . . . . . . . 3 . . . . . . . . . . 6 . . . . . . Scan Component 6 | . . . . . . . . . 2 . . . . . . . . . . 4 . . . . . . Repair 3 | . . . . . . . . . 1 . . . . . . . . . . 2 . . . . . . Recycling Unit Hacks . | . . . . . . . . . . . . . . . . . . . . . . . . . . . Scanalyzer 2 | . . . . . . . . . . . . . . . . . . . . 2 . . . . . . Insert Component 2 | . . . . . . . . . . . . . . . . . . . . 2 . . . . . . Garrison Access Hacks 5 | . . . . . . . 1 . 1 . . . . 1 . . . . . 1 . . . . 1 . Unlock Access 1 | . . . . . . . 1 . . . . . . . . . . . . . . . . . . . Seal Access 4 | . . . . . . . . . 1 . . . . 1 . . . . . 1 . . . . 1 . Unauthorized Hacks 12 | . . . 1 . . . 2 . 2 . . . . . . . . . . 7 . . . . . . Terminals 6 | . . . 1 . . . 2 . 1 . . . . . . . . . . 2 . . . . . . Botnet 6 | . . . 1 . . . 2 . 1 . . . . . . . . . . 2 . . . . . . Fabricators 4 | . . . . . . . . . 1 . . . . . . . . . . 3 . . . . . . Liberate 2 | . . . . . . . . . 1 . . . . . . . . . . 1 . . . . . . Fabnet 1 | . . . . . . . . . . . . . . . . . . . . 1 . . . . . . Haulers 1 | . . . . . . . . . . . . . . . . . . . . 1 . . . . . . Repair Stations . | . . . . . . . . . . . . . . . . . . . . . . . . . . . Recycling Units 2 | . . . . . . . . . . . . . . . . . . . . 2 . . . . . . Mask 2 | . . . . . . . . . . . . . . . . . . . . 2 . . . . . . Scanalyzers . | . . . . . . . . . . . . . . . . . . . . . . . . . . . Garrison Access . | . . . . . . . . . . . . . . . . . . . . . . . . . . . Data Cores Recovered 1 | . . . . . . . . . . . . . . 1 . . . . . . . . . . . . Used . | . . . . . . . . . . . . . . . . . . . . . . . . . . . Hacking Detections 39 | . 1 1 1 . . . 4 3 4 . . . . 5 . . . . 1 16 . . . 1 1 1 Full Trace Events 7 | . . . . . . . . 1 . . . . . 3 . . . . . 2 . . . . . 1 Feedback Events 3 | . . . . . . . . 1 . . . . . 1 . . . . . 1 . . . . . . Corruption 3 | . . . . . . . . 1 . . . . . 1 . . . . . 1 . . . . . . Feedback Blocked . | . . . . . . . . . . . . . . . . . . . . . . . . . . . Robot Schematics Acquired 9 | . . . . . . . . . . . . 5 . . . . 3 . . 1 . . . . . . Robots Built 3 | . . . . . . . . . 3 . . . . . . . . . . . . . . . . . Authchips . | . . . . . . . . . . . . . . . . . . . . . . . . . . . Time 116 | . . . . . . . . . 116 . . . . . . . . . . . . . . . . . Total Robot Build Rating 9 | . . . . . . . . . 9 . . . . . . . . . . . . . . . . . Part Schematics Acquired 28 | . . . . . . . . . . . . 10 . . . . 14 . . . . . 4 . . . Parts Built 2 | . . . . . . . . . . . . . . 2 . . . . . . . . . . . . Authchips . | . . . . . . . . . . . . . . . . . . . . . . . . . . . Time 53 | . . . . . . . . . . . . . . 53 . . . . . . . . . . . . Total Part Build Rating 12 | . . . . . . . . . . . . . . 12 . . . . . . . . . . . . Parts Repaired 3 | . . . . . . . . . 1 . . . . . . . . . . 2 . . . . . . Time 134 | . . . . . . . . . 13 . . . . . . . . . . 121 . . . . . . Parts Recycled . | . . . . . . . . . . . . . . . . . . . . . . . . . . . Recycled Matter . | . . . . . . . . . . . . . . . . . . . . . . . . . . . Retrieved Matter . | . . . . . . . . . . . . . . . . . . . . . . . . . . . Retrieved Components . | . . . . . . . . . . . . . . . . . . . . . . . . . . . Parts Scanalyzed 1 | . . . . . . . . . . . . . . . . . . . . 1 . . . . . . Part Schematics Acquired . | . . . . . . . . . . . . . . . . . . . . . . . . . . . Parts Damaged 1 | . . . . . . . . . . . . . . . . . . . . 1 . . . . . . Bothacking | -11 -10 -10 -9 -9 -9 -8 -8 -8 -7 -7 -7 -7 -6 -6 -6 -6 -6 -6 -5 -5 -5 -5 -5 -4 -4 -3 ------------ Run | Yrd Mat Min Mat Min Exi Min Mat Gar Fac Low Low Dat Pro Fac Low Low Zio Dee Pro Fac Upp Upp Zhi Pro Fac Res Used RIF Installer . | . . . . . . . . . . . . . . . . . . . . . . . . . . . Robots Hacked 4 | . . . . . . . . . . . . . . . . . . . . . . . . 1 1 2 Non-combat . | . . . . . . . . . . . . . . . . . . . . . . . . . . . Combat 4 | . . . . . . . . . . . . . . . . . . . . . . . . 1 1 2 Robot Hacks Applied . | . . . . . . . . . . . . . . . . . . . . . . . . . . . Relay Couplers Released 20 | . . . . . . . . 20 . . . . . . . . . . . . . . . . . . Machine Destruction 20 | . . . . . . . . 20 . . . . . . . . . . . . . . . . . . Fabnet Peak Effective % 3 | . . . . . . . . . . . . . . . . . . . . . . . . 3 3 1 Autooverrided 4 | . . . . . . . . . . . . . . . . . . . . . . . . 1 1 2 Robots Rewired 6 | . . . . . . . . 3 . 2 . . . . . . . . . . . 1 . . . . Allies Hacked 1 | . . . . . . . . . . . . . 1 . . . . . . . . . . . . . Hacks Repelled . | . . . . . . . . . . . . . . . . . . . . . . . . . . . Allies | -11 -10 -10 -9 -9 -9 -8 -8 -8 -7 -7 -7 -7 -6 -6 -6 -6 -6 -6 -5 -5 -5 -5 -5 -4 -4 -3 -------- Run | Yrd Mat Min Mat Min Exi Min Mat Gar Fac Low Low Dat Pro Fac Low Low Zio Dee Pro Fac Upp Upp Zhi Pro Fac Res Total Allies 23 | . . . . . . . . 3 3 2 . . . . . . 6 . . . . 1 . 1 2 5 Largest Group 6 | . . . . . . . . 3 3 2 2 2 2 . . . 6 6 . . . 1 . 1 1 2 Highest-Rated Group 290 | . . . . . . . . 90 90 40 40 40 40 . . . 290 290 . . . 29 . 58 137 163 Highest-Rated Ally 137 | . . . . . . . . 39 39 20 20 20 20 . . . 96 96 . . . 29 . 58 137 137 Total Orders . | . . . . . . . . . . . . . . . . . . . . . . . . . . . Ally Attacks 189 | . . . . . . . . 5 49 14 1 . 6 . . 4 . 81 . . . 7 . 2 3 17 Total Damage 3758 | . . . . . . . . 41 502 139 63 . 199 . . 221 . 1280 . . . 75 . 19 112 1107 Kills 28 | . . . . . . . . . 7 1 1 . 1 . . 1 . 11 . . . 1 . . 1 4 Allies Corrupted . | . . . . . . . . . . . . . . . . . . . . . . . . . . . Allies Melted . | . . . . . . . . . . . . . . . . . . . . . . . . . . . Turrets Deployed 1 | . . . . . . . . . . . . . . . . 1 . . . . . . . . . . Field Lobotomies 4 | . . . . . . . . . . . . . . . . . . . . . . . . . 1 3 Intel | -11 -10 -10 -9 -9 -9 -8 -8 -8 -7 -7 -7 -7 -6 -6 -6 -6 -6 -6 -5 -5 -5 -5 -5 -4 -4 -3 ------- Run | Yrd Mat Min Mat Min Exi Min Mat Gar Fac Low Low Dat Pro Fac Low Low Zio Dee Pro Fac Upp Upp Zhi Pro Fac Res Robot Analysis Total 4 | . . . . . . . . . . . . . . . . . . . . . . . 4 . . . Derelict Logs Recovered 14 | . . 1 . 1 . . . . . 1 1 . 3 . 1 1 1 . . . 2 1 . 1 . . Drone Launches . | . . . . . . . . . . . . . . . . . . . . . . . . . . . Drone Recoveries . | . . . . . . . . . . . . . . . . . . . . . . . . . . . Exploration | -11 -10 -10 -9 -9 -9 -8 -8 -8 -7 -7 -7 -7 -6 -6 -6 -6 -6 -6 -5 -5 -5 -5 -5 -4 -4 -3 ------------- Run | Yrd Mat Min Mat Min Exi Min Mat Gar Fac Low Low Dat Pro Fac Low Low Zio Dee Pro Fac Upp Upp Zhi Pro Fac Res Turns Passed 36524 | . 242 1320 517 180 2552 205 395 1648 905 2054 1877 216 1814 854 1740 1356 2019 4543 1616 1993 1366 3104 1471 1181 725 631 Spaces Moved 15591 | 1 130 674 205 112 1009 81 150 632 395 777 779 91 712 304 768 767 1218 2170 416 902 615 1176 344 451 330 382 Core 6 | . . . . . . . . . . . . . . . . . . . . . . . . . . 6 Treads 9515 | . . 67 205 112 1009 81 150 613 395 777 779 91 712 304 768 767 1218 1464 . . . . . . . 3 Legs 6070 | 1 130 607 . . . . . 19 . . . . . . . . . 706 416 902 615 1176 344 451 330 373 Wheels . | . . . . . . . . . . . . . . . . . . . . . . . . . . . Hover . | . . . . . . . . . . . . . . . . . . . . . . . . . . . Flight . | . . . . . . . . . . . . . . . . . . . . . . . . . . . Fastest Speed 50 | 120 120 120 160 160 160 240 163 160 160 240 240 240 162 167 165 165 165 165 180 135 185 135 135 183 132 50 Average Speed 189 | 120 120 161 168 160 193 240 237 201 205 240 240 240 236 205 215 165 165 174 184 186 185 184 167 184 172 139 Slowest Speed 570 | 120 120 240 240 160 240 240 243 320 240 240 240 240 243 250 247 165 165 285 189 189 185 185 186 185 186 570 Overloaded Moves . | . . . . . . . . . . . . . . . . . . . . . . . . . . . Propulsion Burnouts . | . . . . . . . . . . . . . . . . . . . . . . . . . . . Robots Hopped 2 | . . . . . . . . . . . . . . . . 2 . . . . . . . . . . Cave-ins Triggered 1 | . . . . . . . . . . . . . . . . . . . 1 . . . . . . . Exploration Rate (%) 54 | 2 33 98 24 34 84 28 17 58 17 79 87 70 76 12 92 72 86 80 54 31 76 75 76 70 13 17 Regions Visited 26 Branch Regions 17 Pre-discovered Areas 10 | . . . . 1 1 . . . . 1 . 1 1 . . . 1 . . . 1 . 3 . . . Known Exits Taken 16 | . 1 . 1 . . . 1 . 1 1 1 1 1 1 1 1 1 . 1 1 . . . 1 1 . Unknown Exits Taken 9 | 1 . 1 . 1 1 1 . . . . . . . . . . . 1 . . 1 1 1 . . . Scrap Searched 26 | . . 1 . . . . . . . 4 3 . 2 . 2 4 3 . 1 . 1 2 . 3 . . Spaces Dug 270 | . . . . . . . . . . 16 . . . . . . . . 36 23 39 96 . 48 4 8 Terrain Destroyed 753 | . . 25 21 . 23 43 . 8 2 47 . . 12 79 . . . 3 84 90 55 111 9 74 49 18 Melee . | . . . . . . . . . . . . . . . . . . . . . . . . . . . Projectile 402 | . . . 1 . 2 . . 5 2 17 . . . . . . . 3 47 46 55 111 9 74 14 16 AOE 348 | . . 25 20 . 21 43 . . . 30 . . 12 79 . . . . 37 44 . . . . 35 2 Terrain Rammed . | . . . . . . . . . . . . . . . . . . . . . . . . . . . Walls Destroyed . | . . . . . . . . . . . . . . . . . . . . . . . . . . . Machines Disabled . | . . . . . . . . . . . . . . . . . . . . . . . . . . . Actions | -11 -10 -10 -9 -9 -9 -8 -8 -8 -7 -7 -7 -7 -6 -6 -6 -6 -6 -6 -5 -5 -5 -5 -5 -4 -4 -3 --------- Run | Yrd Mat Min Mat Min Exi Min Mat Gar Fac Low Low Dat Pro Fac Low Low Zio Dee Pro Fac Upp Upp Zhi Pro Fac Res Total 20924 | . 169 843 295 113 1464 88 174 839 456 884 786 90 796 423 817 833 1226 2849 1184 1129 785 1989 1155 703 400 434 Wait 3685 | . 7 92 16 . 288 . 3 50 21 27 1 . 13 28 24 29 1 505 707 135 131 684 732 180 3 8 Move 15561 | . 129 673 204 111 1008 80 150 630 394 776 778 90 711 303 767 762 1217 2169 415 901 614 1175 343 450 329 382 Hop 2 | . . . . . . . . . . . . . . . . 2 . . . . . . . . . . Pick Up 178 | . 6 13 13 1 23 . 4 6 6 4 2 . 3 6 1 9 1 27 . 15 6 17 7 3 5 . Fast Attach 117 | . 1 6 3 . 1 1 2 11 5 3 . . 14 12 . 3 2 22 3 6 . 4 6 8 2 2 Attach 63 | . 1 . 5 . 6 . 2 8 2 2 1 . 1 5 1 2 . 9 1 . . 3 3 1 3 7 Detach 24 | . . . . . 1 1 . 3 1 1 . . 4 . . . . 2 1 1 . 2 1 . 3 3 Swap 104 | . 1 8 2 . 12 1 . 16 2 17 1 . 8 10 6 3 1 9 . 1 . 2 . . 3 1 Drop 279 | . 1 16 9 1 25 1 4 8 8 7 2 . 17 10 1 9 3 48 12 19 6 33 18 15 3 3 Fire 759 | . 23 29 43 . 43 4 9 74 17 43 1 . 24 49 17 14 1 58 45 46 28 59 14 46 47 25 Melee 118 | . . 6 . . 57 . . 19 . . . . 1 . . . . . . . . 4 31 . . . Ram . | . . . . . . . . . . . . . . . . . . . . . . . . . . . Kick 5 | . . . . . . . . . . . . . . . . . . . . . . . . . 2 3 Crush . | . . . . . . . . . . . . . . . . . . . . . . . . . . . Escape Stasis 7 | . . . . . . . . 2 . . . . . . . . . . . 5 . . . . . . Rewire 22 | . . . . . . . . 12 . 4 . . . . . . . . . . . 6 . . . . Trap . | . . . . . . . . . . . . . . . . . . . . . . . . . . . Miscellaneous . | . . . . . . . . . . . . . . . . . . . . . . . . . . . Route ------- -11/Scrapyard -10/Materials (discovered 2 exits: *Mat / *Min) -10/Mines (discovered 2 exits: *Mat x2) -9/Materials -9/Mines -9/Exiles (discovered 2 exits: [*Min x2]) -8/Mines (discovered 2 exits: *Mat x2) -8/Materials -8/Garrison (discovered 3 exits: *Fac x3) -7/Factory (discovered 2 exits: *Low x2) -7/Lower Caves -7/Lower Caves (discovered 2 exits: *Fac / *Dat) -7/Data Miner -6/Proximity Caves -6/Factory (discovered 2 exits: *Low x2) -6/Lower Caves -6/Lower Caves (discovered 2 exits: *Fac / *Zio) -6/Zion (discovered 2 exits: *Dee / [*Pro]) -6/Deep Caves -5/Proximity Caves -5/Factory (discovered 4 exits: *Fac x2 / *Upp x2) -5/Upper Caves -5/Upper Caves (discovered 2 exits: *Fac / *Zhi) -5/Zhirov -4/Proximity Caves -4/Factory (discovered 2 exits: *Res / Upp) -3/Research History --------- Turn | Location | Event 1 | -11/Scrapyard | Discovered new exit (range 0) 1 | -11/Scrapyard | Entered Materials 58 | -10/Materials | Discovered new exit (range 16) 90 | -10/Materials | Discovered new exit (range 8) 182 | -10/Materials | Identified exit to Mines 243 | -10/Materials | Entered Mines 273 | -10/Mines | Learned 2 Materials zone layouts 316 | -10/Mines | Build established: Mutant 320 | -10/Mines | Met a Derelict shopkeep closing up shop 464 | -10/Mines | YI-UF0 nonchalantly dropped a Grenade Launcher on the ground 482 | -10/Mines | Murdered YI-UF0 482 | -10/Mines | Destroyed YI-UF0 489 | -10/Mines | Found Prototype Launcher 951 | -10/Mines | Discovered new exit (range 11) 970 | -10/Mines | Core integrity fell below 50% 1263 | -10/Mines | Discovered new exit (range 7) 1563 | -10/Mines | Entered Materials 1563 | -9/Materials | Evolved 2 slots: Propulsion x1, Utility x1 1564 | -9/Materials | Identified exit to Mines 1584 | -9/Materials | Build established: Scavenger-Mutant 1951 | -9/Materials | Destroyed 8 combat bots 2080 | -9/Materials | Entered Mines 2110 | -9/Mines | Met a Derelict who couldn't figure out how to use a Trap Extractor 2236 | -9/Mines | Learned location of Storage (-8) 2252 | -9/Mines | Deemed a non-threat by the Exiles lab entrance 2253 | -9/Mines | Discovered new exit (range 5) 2260 | -9/Mines | Entered Exiles 2281 | -9/Exiles | Discovered new exit (range 15) 2300 | -9/Exiles | Met 8R-AWN 2323 | -9/Exiles | Met EX-HEX 2449 | -9/Exiles | Met EX-DEC 2497 | -9/Exiles | Learned location of Zion (-6) 2594 | -9/Exiles | Discovered new exit (range 11) 3024 | -9/Exiles | Met EX-BIN 3048 | -9/Exiles | Aligned with FarCom system 3050 | -9/Exiles | Given EX-Vault access code 3088 | -9/Exiles | Opened EX-Vault 3122 | -9/Exiles | Warned to stay clear of 0b10 Research branches 3433 | -9/Exiles | Attacked by the Exiles 3673 | -9/Exiles | Destroyed 8R-AWN 3681 | -9/Exiles | Found Prototype Ballistic Gun 3916 | -9/Exiles | Build established: Mutant 4007 | -9/Exiles | Identified 8R-AWN's Boregun 4046 | -9/Exiles | Destroyed EX-DEC 4051 | -9/Exiles | Destroyed EX-HEX 4138 | -9/Exiles | Found Deploy-a-Sentry 4504 | -9/Exiles | Found Modified TNC 4518 | -9/Exiles | Found Field Lobotomy Kit 4529 | -9/Exiles | Found AWS/Autocannon 4812 | -9/Exiles | Stole four prototypes: Modified TNC, AWS/Autocannon, Field Lobotomy Kit, Deploy-a-Sentry 4812 | -9/Exiles | Entered Mines 4897 | -8/Mines | Identified YI-UF0's Doublenader 4924 | -8/Mines | Destroyed 8 combat bots 4926 | -8/Mines | Discovered new exit (range 12) 5001 | -8/Mines | Discovered new exit (range 6) 5017 | -8/Mines | Entered Materials 5017 | -8/Materials | Evolved 2 slots: Utility x2 5314 | -8/Materials | Build established: Scavenger-Mutant 5412 | -8/Materials | Identified exit to Garrison 5412 | -8/Materials | Entered Garrison 5455 | -8/Garrison | Discovered new exit (range 63) 5455 | -8/Garrison | Discovered new exit (range 40) 5455 | -8/Garrison | Discovered new exit (range 59) 5570 | -8/Garrison | Triggered checkpoint 5628 | -8/Garrison | Lost 3 parts (2n1u) 5630 | -8/Garrison | Destroyed 10 combat bots 5688 | -8/Garrison | Lost 3 parts (2u1w) 5711 | -8/Garrison | System corruption reached 10% 5834 | -8/Garrison | Triggered checkpoint 5837 | -8/Garrison | Core integrity fell below 50% 6002 | -8/Garrison | Triggered checkpoint 6225 | -8/Garrison | Garrison Relay disabled 6225 | -8/Garrison | Garrison Relay disabled 6228 | -8/Garrison | Garrison Relay disabled 6228 | -8/Garrison | Garrison Relay disabled 6250 | -8/Garrison | Garrison Relay disabled 6664 | -8/Garrison | Triggered checkpoint 6856 | -8/Garrison | Attempted to access garrison exit controls, blocked by remote lockdown 7060 | -8/Garrison | Entered Factory 7060 | -7/Factory | Accompanied by 3 allies 7060 | -7/Factory | Evolved 2 slots: Power x1, Propulsion x1 7102 | -7/Factory | Identified exit to Lower Caves 7278 | -7/Factory | Noticed a derelict Sapper rigging charges 7779 | -7/Factory | Fabricated G-47 Trooper? 7811 | -7/Factory | P-60 Hacker assimilated allied Trooper 4a 7916 | -7/Factory | Repaired Lgt. Treads 7965 | -7/Factory | Entered Lower Caves 7965 | -7/Lower Caves | Accompanied by 2 allies 7971 | -7/Lower Caves | Met a Warlord Commander 7972 | -7/Lower Caves | Learned location of Warlord (-4) 7973 | -7/Lower Caves | Found Encrypted Comm Array 8006 | -7/Lower Caves | Encountered a Warlord checkpoint 9563 | -7/Lower Caves | Attacked by a faux Warlord 9598 | -7/Lower Caves | Destroyed 7 combat bots 9677 | -7/Lower Caves | Discovered new exit (range 5) 9877 | -7/Lower Caves | Learned 4 Factory zone layouts 10016 | -7/Lower Caves | Identified exit to Lower Caves 10019 | -7/Lower Caves | Entered another Lower Caves area 10019 | -7/Lower Caves | Accompanied by 2 allies 10125 | -7/Lower Caves | Discovered new exit (range 4) 10185 | -7/Lower Caves | Identified exit to Factory 10425 | -7/Lower Caves | Learned Factory non-interactive machine intel 10965 | -7/Lower Caves | Discovered new exit (range 5) 11076 | -7/Lower Caves | Encountered a Warlord checkpoint 11493 | -7/Lower Caves | Identified exit to Data Miner 11896 | -7/Lower Caves | Entered Data Miner 11896 | -7/Data Miner | Accompanied by 2 allies 11896 | -7/Data Miner | Discovered new exit (range 6) 11942 | -7/Data Miner | Met Data Miner 12007 | -7/Data Miner | Learned location of Section 7 (-2) 12007 | -7/Data Miner | Acquired the access code to Warlord's prototype stash 12038 | -7/Data Miner | Received God Mode back door access code from Data Miner 12108 | -7/Data Miner | Identified exit to Proximity Caves 12112 | -7/Data Miner | Entered Proximity Caves 12112 | -6/Proximity Caves | Accompanied by 2 allies 12124 | -6/Proximity Caves | Learned Factory emergency access door positions 12179 | -6/Proximity Caves | Spotter reported a threat 12239 | -6/Proximity Caves | Spotter reported a threat 12374 | -6/Proximity Caves | Spotter reported a threat 12883 | -6/Proximity Caves | Spotted B-75 Beast 12946 | -6/Proximity Caves | Destroyed B-75 Beast 13093 | -6/Proximity Caves | Spotter reported a threat 13206 | -6/Proximity Caves | Discovered exit to Factory (range 10) 13244 | -6/Proximity Caves | Spotter reported a threat 13365 | -6/Proximity Caves | Learned 4 Factory zone layouts 13371 | -6/Proximity Caves | Encountered a Derelict guarding a broken Freighter 13510 | -6/Proximity Caves | Found Prototype Launcher 13510 | -6/Proximity Caves | Identified Tesla Bomb Launcher 13515 | -6/Proximity Caves | Found Prototype Launcher 13515 | -6/Proximity Caves | Identified Com. Tesla Bomb Launcher 13628 | -6/Proximity Caves | Spotter reported a threat 13926 | -6/Proximity Caves | Entered Factory 13926 | -6/Factory | Evolved 2 slots: Utility x2 13929 | -6/Factory | Loaded intel: 229 non-interactive machine locations 14132 | -6/Factory | Fabricated Arm. Medium Treads (x2) 14276 | -6/Factory | Search patrols dispatched 14300 | -6/Factory | Found Prototype Launcher 14300 | -6/Factory | Identified Rocket Array 14303 | -6/Factory | Found Rocket Array 14436 | -6/Factory | Identified exit to Lower Caves 14626 | -6/Factory | Search patrols dispatched 14780 | -6/Factory | Entered Lower Caves 15071 | -6/Lower Caves | Spotted B-75 Beast 15447 | -6/Lower Caves | Encountered a Warlord checkpoint 15740 | -6/Lower Caves | Learned Factory terminal intel 16391 | -6/Lower Caves | Attacked by a delusional Derelict stockpiling parts 16501 | -6/Lower Caves | Discovered new exit (range 8) 16519 | -6/Lower Caves | Identified exit to Lower Caves 16520 | -6/Lower Caves | Entered another Lower Caves area 16520 | -6/Lower Caves | Spotted JJ-4O7(f) 16520 | -6/Lower Caves | Spotted DF-29P(f) 16521 | -6/Lower Caves | Encountered a Master Thief 16521 | -6/Lower Caves | Encountered a Master Thief 16522 | -6/Lower Caves | DAS Turret deployed 16523 | -6/Lower Caves | Modified TNC stolen by Master Thief 16526 | -6/Lower Caves | AWS/Autocannon stolen by Master Thief 16527 | -6/Lower Caves | Allies destroyed JJ-4O7(f) 16628 | -6/Lower Caves | Learned 4 Factory zone layouts 16791 | -6/Lower Caves | Discovered new exit (range 9) 16809 | -6/Lower Caves | Identified exit to Factory 17648 | -6/Lower Caves | Discovered new exit (range 7) 17665 | -6/Lower Caves | Identified exit to Zion 17876 | -6/Lower Caves | Entered Zion 17958 | -6/Zion | Discovered new exit (range 15) 18006 | -6/Zion | Given A8's code to call for help 18019 | -6/Zion | System corruption cleaned by Quarantine Array 18163 | -6/Zion | Acquired unknown access codes intercepted by a Zionite 18522 | -6/Zion | Identified exit to Deep Caves 19152 | -6/Zion | Gained Derelict followers 19837 | -6/Zion | Opened final containment barrier to the Deep Caves 19867 | -6/Zion | Enhanced Grunt warped into view, answering call for help 19868 | -6/Zion | Enhanced Grunt warped into view, answering call for help 19880 | -6/Zion | Saw the warning signs outside the Deep Caves entrance 19895 | -6/Zion | Entered Deep Caves 19895 | -6/Deep Caves | Accompanied by 6 allies 20383 | -6/Deep Caves | Attacked by Z-Imprinter 20402 | -6/Deep Caves | Allies destroyed Z-Imprinter 20509 | -6/Deep Caves | Found Prototype Protection 20509 | -6/Deep Caves | Identified Zio. Weapon Casing 20610 | -6/Deep Caves | Z-Facility disabled 20680 | -6/Deep Caves | Found Zio. Weapon Casing 20718 | -6/Deep Caves | Found Prototype Protection 20718 | -6/Deep Caves | Identified Zio. Heavy Carapace 20724 | -6/Deep Caves | Found Zio. Heavy Carapace 21026 | -6/Deep Caves | Build established: Mutant 21061 | -6/Deep Caves | Found Zio. Heavy Carapace 21474 | -6/Deep Caves | Discovered new exit (range 6) 21585 | -6/Deep Caves | Spotted as-68974 21620 | -6/Deep Caves | Destroyed as-68974 21866 | -6/Deep Caves | Build established: Scavenger-Mutant 22428 | -6/Deep Caves | Spotted as-93558 22439 | -6/Deep Caves | Core integrity fell below 50% 22482 | -6/Deep Caves | Destroyed as-93558 22509 | -6/Deep Caves | Lost 5 parts (1n4u) 22558 | -6/Deep Caves | Triggered Deep Caves wall 22558 | -6/Deep Caves | Spotted AS-25894 22558 | -6/Deep Caves | Spotted AS-43566 22562 | -6/Deep Caves | Destroyed AS-25894 22562 | -6/Deep Caves | Destroyed AS-43566 22587 | -6/Deep Caves | Destroyed 35 combat bots 22640 | -6/Deep Caves | Exposed GOLEM chamber 22644 | -6/Deep Caves | Found GOLEM Unit 23076 | -6/Deep Caves | Build established: Golem 23229 | -6/Deep Caves | Found GOLEM Unit 23233 | -6/Deep Caves | Found GOLEM Unit 24438 | -6/Deep Caves | Entered Proximity Caves 24477 | -5/Proximity Caves | Attracted the attention of an 0b10 checkpoint 24628 | -5/Proximity Caves | Attracted the attention of an 0b10 base 24666 | -5/Proximity Caves | Core integrity fell below 20% 24689 | -5/Proximity Caves | Destroyed 7 combat bots 24700 | -5/Proximity Caves | Learned Extension security intel 24700 | -5/Proximity Caves | Learned Armory emergency access door positions 24700 | -5/Proximity Caves | Learned Factory emergency access door positions 24700 | -5/Proximity Caves | Learned Armory trap positions 24700 | -5/Proximity Caves | Learned 6 Lower Caves zone layouts 24700 | -5/Proximity Caves | Learned 8 Factory zone layouts 25245 | -5/Proximity Caves | Spotted B-75 Beast 25425 | -5/Proximity Caves | Crushed by falling debris 25572 | -5/Proximity Caves | Discovered exit to Factory (range 15) 26054 | -5/Proximity Caves | Entered Factory 26054 | -5/Factory | Evolved 2 slots: Utility x1, Weapon x1 26055 | -5/Factory | Identified exit to Upper Caves 26055 | -5/Factory | Identified exit to Factory 26057 | -5/Factory | Loaded intel: 26 terminal locations 26253 | -5/Factory | Discovered exit to Factory (range 14) 27404 | -5/Factory | Repaired Broken Cmb. Antigrav System 27792 | -5/Factory | Repaired Hcp. Storage Unit 28026 | -5/Factory | Cargo convoy interrupted 28047 | -5/Factory | Entered Upper Caves 28047 | -5/Upper Caves | Spotted FR-6ZF(f) 28047 | -5/Upper Caves | Spotted 3D-WFY(f) 28047 | -5/Upper Caves | Spotted 7W-RF7(f) 28048 | -5/Upper Caves | Encountered a Master Thief 28048 | -5/Upper Caves | Encountered a Master Thief 28048 | -5/Upper Caves | Encountered a Master Thief 28049 | -5/Upper Caves | Exp. Reaction Control System stolen by Master Thief 28050 | -5/Upper Caves | Cmb. Antigrav System stolen by Master Thief 28055 | -5/Upper Caves | Destroyed 7W-RF7(f) 28813 | -5/Upper Caves | Learned location of 1 exit from Factory 29356 | -5/Upper Caves | Discovered new exit (range 7) 29413 | -5/Upper Caves | Entered another Upper Caves area 29417 | -5/Upper Caves | Discovered exit to Factory (range 7) 29648 | -5/Upper Caves | Attracted the attention of an 0b10 outpost 29984 | -5/Upper Caves | Learned location of 1 exit from Factory 30596 | -5/Upper Caves | Spotted U6-ALK(f) 30597 | -5/Upper Caves | Encountered a Master Thief 30598 | -5/Upper Caves | Spotted I0-2M1(f) 30598 | -5/Upper Caves | GOLEM Unit stolen by Master Thief 30599 | -5/Upper Caves | Encountered a Master Thief 30599 | -5/Upper Caves | Spotted B5-CXX(f) 30600 | -5/Upper Caves | Encountered a Master Thief 30601 | -5/Upper Caves | Destroyed U6-ALK(f) 30601 | -5/Upper Caves | GOLEM Unit stolen by Master Thief 30604 | -5/Upper Caves | Destroyed I0-2M1(f) 30639 | -5/Upper Caves | Found GOLEM Unit 31547 | -5/Upper Caves | Discovered new exit (range 10) 32517 | -5/Upper Caves | Entered Zhirov 32518 | -5/Zhirov | Discovered new exit (range 3) 32543 | -5/Zhirov | Met Zhirov 32568 | -5/Zhirov | Learned location of Quarantine (-3) 32568 | -5/Zhirov | Learned location of Testing (-2) 32568 | -5/Zhirov | Learned location of Command (-1) 32589 | -5/Zhirov | Zhirov requested help retrieving the SGEMP Prototype 32610 | -5/Zhirov | Found Alien Artifact 32610 | -5/Zhirov | Identified Integrated Reactor 32610 | -5/Zhirov | Installed Integrated Reactor, increased core energy generation (+10) 32629 | -5/Zhirov | Found Alien Artifact 32770 | -5/Zhirov | Build established: Scavenger-Golem 33105 | -5/Zhirov | Attacked by Zhirov 33135 | -5/Zhirov | Zhirov detonated his lab 33135 | -5/Zhirov | Cloak Generator disabled 33166 | -5/Zhirov | Lost 4 parts (2u2w) 33501 | -5/Zhirov | Found Prototype Device 33501 | -5/Zhirov | Identified Exp. Thermal Shield 33981 | -5/Zhirov | Build established: Golem 33988 | -5/Zhirov | Entered Proximity Caves 34166 | -4/Proximity Caves | Found Unknown Protection 34166 | -4/Proximity Caves | Identified Imp. Powered Armor 34462 | -4/Proximity Caves | Learned Research terminal intel 34571 | -4/Proximity Caves | Attracted the attention of an 0b10 checkpoint 34935 | -4/Proximity Caves | Discovered exit to Factory (range 13) 35169 | -4/Proximity Caves | Entered Factory 35169 | -4/Factory | Evolved 2 slots: Propulsion x1, Utility x1 35170 | -4/Factory | Identified exit to Research 35170 | -4/Factory | Identified exit to Upper Caves 35708 | -4/Factory | Destroyed 7 combat bots 35785 | -4/Factory | Spotted B-86 Titan 35815 | -4/Factory | Assimilated H-71 Marshal with FLK Orb 35887 | -4/Factory | Found Prototype Device 35887 | -4/Factory | Identified Active Sensor Suite 35894 | -4/Factory | Entered Research 35894 | -3/Research | Evolved 2 slots: Propulsion x1, Utility x1 35895 | -3/Research | Loaded intel: 25 terminal locations 35914 | -3/Research | Lost 6 parts (1p1n2u2w) 36394 | -3/Research | First assault squad dispatched 36398 | -3/Research | Assimilated H-71 Marshal with FLK Orb 36426 | -3/Research | Lost 3 parts (2n1u) 36481 | -3/Research | Spotted B-86 Titan 36497 | -3/Research | System corruption reached 10% 36514 | -3/Research | Core integrity fell below 50% 36518 | -3/Research | Assimilated B-86 Titan with FLK Orb 36521 | -3/Research | Core integrity fell below 20% 36524 | -3/Research | Assimilated G-67 Veteran with FLK Orb 36525 | -3/Research | Destroyed by G-67 Veteran with Field Laser Last Messages --------------- 36518_ G-67 Veteran suffers critical hit (Burn). 36518_ B-86 Titan assimilated. 36519_ U-05 Engineer lays Concrete. 36519_ R-10 Processor collects Arm. Medium Treads. 36520_ U-05 Engineer lays Concrete. 36521_ OG BCU5THZKJ6&7IRMYQPHNZWRHCIK 1YOJ2F 36521_ U-05 Engineer lays Concrete. 36521_ K-01 Serf collects debris. 36521_ P-80 Master knocked back. 36521_ P-80 Master destroyed. 36522_ U-05 Engineer lays Concrete. 36522_ R-10 Processor collects Corrupted Unknown Device. 36522_ P-80 Master resets G-73 Enforcer, system corruption cleaned. 36523_ Titan 8a exits siege mode. 36523_ U-05 Engineer builds a Wall. 36523_ P-80 Master fails to hack Titan 8a. 36524_ K-01 Serf collects debris. 36524_ Field Lobotomy Kit expended. 36524_ G-67 Veteran assimilated. 36525_ Slug penetrates P-80 Master. Map ----- +----------------------------------------------------+ | ??????????????????????????????????????????? | | ??????????????????????????????????????????? | | ??????????????????????????????????????????? | | ??????????????????????????????????????????? | | ??????????????????????????????????????????? | | ??????????????????????????????????????????" | | ??????????????????????????????????????????" | | ??????????????????????????????????????????? | | ??????????????????????????????????????????? | | ??????????????????????????????????????????? | | ??????????????? g ???????????????????????? | | ?????????????# ####???????????????????? | | ?????????????# g k ????????????????? | | ?????????????# ????????????????? | | ???????????### ????????????????? | | ????????????" ""??? ?????"??????? | | ???????????"" /[[ """ ????T??????? | | ???????????" /[[ """ ????"??????? | | ???????????"F" [[[ ??????????? | | ???????????"""%% ??????????? | | ????????????""%! /!??????????? | | ?????????????#[ /* ?????????? | | ?????????????# g ?????????? | | ???????#?????# p ????????? | | ???????# ??### g %BB ????????? | | ???????# ###"# g @% pBBu# #???????????? | | ???????# [ [[#??????????????? | | # ????# !%|#??????????????? | | # # ! #??????????????? | | # / %!! #??????????????? | | # # ]! !! !! #??????????????? | | ? ??# !*!! !! #??????????????? | | ???????# ! ;;###+#??????????????? | | ???????##;#;##!%gg # ????????????? | | ????????####?##% ## ???????????????? | | ??????????????# #? ??????????????? | | ???????#??????# #?? ??????????????? | | ???????# ????# #?? ??????????????? | | ???????# ??# R% #???##????????????????? | | ???????# ;* #?????????????????????? | | ???????# "!!%k%"####?????????????????? | | ???????#] #%!!==%% ??????????? | | ???????# = #%=!####### ???????????? | | ???????###?#### / #???????????????????????? | | ??????????????#% #???????????????????????? | | ??????????????# #???????????????????????? | | ??????????????# #???????????????????????? | | ??????######?## ##??????????????????????? | | ??????# # #??????????????????????? | | ??????# # %[ #??????????????????????? | +----------------------------------------------------+ Best States ------------- Heat Dissipation 96 Coolant Potential 120 Energy Generation 55 Energy Capacity 1220 Matter Stores 527 Matter Capacity 600 Sight Range 22 Robot Scan Range 20 Terrain Scan Density 10 ECM Strength 2 Jamming Range 16 Additional Mass Support 20 Armor Coverage 1425 Resistance: KI 30 Resistance: TH 30 Resistance: EX 15 Resistance: EM 15 Resistance: I 15 Resistance: S 15 Resistance: P 15 Propulsion Shielding 66 Utility Shielding 90 Weapon Shielding 100 Evasion (%) 55 Targeting Accuracy 8 Core Analysis 9 Recoil Reduction 4 Energy Filtering 50 Salvage Targeting 4 Offensive Hacking 10 Item Schematics ----------------- Combat Drone Bay | -7/Data Miner | Free Lgt. Regenerative Plating | -7/Data Miner | Free Cld. Aerolev Unit | -7/Data Miner | Free Exp. Utility Shielding | -7/Data Miner | Free Shock Maul | -7/Data Miner | Free Arm. Medium Treads | -7/Data Miner | Free Imp. Arc Projector | -7/Data Miner | Free Imp. Focal Shield | -7/Data Miner | Free Drone Bay | -7/Data Miner | Free Imp. Transmission Jammer | -7/Data Miner | Free Hpw. Shock Rifle | -6/Zion | Archive Antigrav System | -6/Zion | Archive Adv. Sensor Array | -6/Zion | Archive Enh. Gauss Cannon | -6/Zion | Archive Thermic Laser | -6/Zion | Archive Thermal Shield | -6/Zion | Archive Adv. Actuator Array | -6/Zion | Archive Adv. Reaction Control System | -6/Zion | Archive 0b10 Decoder Chip [Skirmisher] | -6/Zion | Archive Lyr. Heavy Armor Plating | -6/Zion | Archive Arm. Leg | -6/Zion | Archive Imp. Particle Charger | -6/Zion | Archive Adv. Shield Generator | -6/Zion | Archive Hvy. Mass Driver | -6/Zion | Archive Assault Drone Bay | -5/Zhirov | Free Exp. Heat Sink | -5/Zhirov | Free Exp. Optical Array | -5/Zhirov | Free Imp. Arc Thrower | -5/Zhirov | Free Robot Schematics ------------------ B-48 Gladiator | -7/Data Miner | Free X-57 Shotgunner | -7/Data Miner | Free Y-54 Guardian | -7/Data Miner | Free M-22 Extractor | -7/Data Miner | Free S-27 Virus | -7/Data Miner | Free E-15 Imp | -6/Zion | Archive T-07 Excavator | -6/Zion | Archive R-10 Processor | -6/Zion | Archive R-06 Scavenger | -5/Factory | Hacked Fabricated ------------ G-47 Trooper | x3 | -7/Factory | Preloaded Arm. Medium Treads | x2 | -6/Factory Alien Tech Used ----------------- Integrated Reactor Achievements -------------- None Challenges ------------ None Game ------ Seed DefenseReactiveSystem Manual? 0 Play Time 03:11:56 Cumulative 364.6 hours Start 2024.01.09 @ 23:09:43 End 2024.01.11 @ 01:54:17 Sessions 5 Manual Loads 0 Difficulty Rogue Special Mode None Game No. 384 Rogue 384 Adventurer 0 Explorer 0 Win Type - Total 29 Types 16/3/4/1/2/0/3/0/0 Lore% 86 Gallery% 86 Achievement% 82 Wizard Run 0 Options --------- ASCII 0 Keyboard 0 Movement Arrows Keybinds 0 Fullscreen 2 Font 24/Smallcaps Map View 76x50 Zoom Use 0% Tactical HUD 1 Map Filters NONE Filters NONE Steam 1 RUN: 5d4ee01b-2515-4a19-bdc6-83b4b9dc9fcb